Cogmind - Beta 17 @@@ ROGUE MODE // 2026.06.27 @ 06:50:42 // Winter2019/RPGLIKE Player: Willow Result: Self-destructed Performance ------------- Evolutions (6) 3000 Regions Visited (20) 4000 Robots Destroyed (374) 1870 Value Destroyed (15892) 15892 Prototype IDs (70) 1400 Alien Tech Used (1) 200 Bonus (22550) 22550 TOTAL SCORE: 48912 Bonus ------- High Alert Combat Kills 1409 Follower Combat Kills 505 Prayed to X0-1V1 5000 Major X0-1V1 Interference 14700 Aligned with FarCom 300 Met Data Miner 300 MAIN.C Attacked Warlord 500 Friendly Fire -164 Cogmind --------- Core Integrity 470/1400 Matter 154/300 Energy 260/260 System Corruption 16% Temperature Cool (0) Movement Immobile (Siege) Location -4/Waste Parts ------- > --- POWER (2) -------- Light Antimatter Reactor Light Quantum Reactor > --- PROPULSION (3) --- Heavy Siege Treads > --- UTILITY (13) ----- Advanced Signal Interpreter Advanced Targeting Computer Experimental Target Analyzer Advanced Transmission Jammer (fused) Thermal Barrier Improved Hardlight Generator (fused) System Mapper Improved System Shield Tech Extrapolator X0-1V1's Piety Tracker > --- WEAPON (5) ------- (None) > --- INVENTORY (4) ---- High-capacity Matter Pod (200) Authchip [Propulsion] Authchip [Weapon] Peak State ------------ > --- POWER ------------ Light Antimatter Reactor Light Quantum Reactor > --- PROPULSION ------- Armored Medium Treads Heavy Siege Treads Centrium Wheel > --- UTILITY ---------- Advanced Sensor Array Advanced Signal Interpreter Advanced Targeting Computer Experimental Target Analyzer Improved Kinecellerator Advanced Transmission Jammer Thermal Barrier Improved Hardlight Generator System Mapper Improved System Shield Tech Extrapolator X0-1V1's Piety Tracker > --- WEAPON ----------- KE Penetrator KE Penetrator KE Penetrator KE Penetrator Railgun > --- INVENTORY -------- Protomatter High-capacity Matter Pod Authchip [Propulsion] Authchip [Weapon] [Rating: 158] Favorites ----------- Power Light Antimatter Reactor Engine Cooled Ion Engine Power Core Light Nuclear Core Reactor Light Antimatter Reactor Propulsion Advanced Treads Treads Advanced Treads Wheel Wheel Utility Advanced Targeting Computer Device X0-1V1's Piety Tracker Storage High-capacity Matter Pod Processor Advanced Targeting Computer Hackware Improved System Shield Weapon KE Penetrator Energy Gun Improved EM Shotgun Energy Cannon Heavy Phase Cannon Ballistic Gun KE Penetrator Launcher Grenade Launcher Special Weapon CPS Tube Build | -11 -10 -10 -10 -9 -8 -8 -8 -8 -6 -6 -6 -6 -5 -5 -5 -5 -5 -4 -4 -4 ------- Run | Yrd Mat Min Exi Min Mat Sto Rec Scr Fac Low Low Dat Pro Fac Upp Upp War Pro Fac Was Slots Evolved 18 | 3 3 2 . 1 1 1 . . 5 . . . . 1 1 . . . . . Power . | . . . . . . . . . . . . . . . . . . . . . Propulsion 3 | 1 . . . . 1 1 . . . . . . . . . . . . . . Utility 10 | 1 2 1 . . . . . . 4 . . . . 1 1 . . . . . Weapon 5 | 1 1 1 . 1 . . . . 1 . . . . . . . . . . . Parts Attached 105 | 6 10 6 1 3 12 3 1 3 23 . 4 . 1 9 3 1 . 1 18 . Power 14 | 1 1 . . . 3 . . . 3 . . . . 1 . . . . 5 . Engine 6 | 1 . . . . 3 . . . 2 . . . . . . . . . . . Core 2 | . 1 . . . . . . . . . . . . . . . . . 1 . Reactor 6 | . . . . . . . . . 1 . . . . 1 . . . . 4 . Propulsion 14 | 2 . . . 1 4 . . . 2 . 1 . . 1 1 . . . 2 . Treads 8 | 1 . . . . 4 . . . . . . . . 1 1 . . . 1 . Leg . | . . . . . . . . . . . . . . . . . . . . . Wheel 6 | 1 . . . 1 . . . . 2 . 1 . . . . . . . 1 . Hover . | . . . . . . . . . . . . . . . . . . . . . Flight . | . . . . . . . . . . . . . . . . . . . . . Utility 45 | 1 4 4 1 . 2 2 1 2 11 . 3 . . 4 2 . . 1 7 . Device 29 | 1 1 2 1 . 2 1 1 1 6 . 1 . . 4 2 . . 1 5 . Storage 2 | . 1 . . . . 1 . . . . . . . . . . . . . . Processor 8 | . 1 2 . . . . . 1 1 . 2 . . . . . . . 1 . Hackware 6 | . 1 . . . . . . . 4 . . . . . . . . . 1 . Protection . | . . . . . . . . . . . . . . . . . . . . . Artifact . | . . . . . . . . . . . . . . . . . . . . . Weapon 32 | 2 5 2 . 2 3 1 . 1 7 . . . 1 3 . 1 . . 4 . Energy Gun 1 | . 1 . . . . . . . . . . . . . . . . . . . Energy Cannon 4 | . . . . . . . . . 3 . . . . 1 . . . . . . Ballistic Gun 23 | 2 3 2 . 1 3 1 . . 4 . . . 1 2 . 1 . . 3 . Ballistic Cannon . | . . . . . . . . . . . . . . . . . . . . . Launcher 2 | . 1 . . 1 . . . . . . . . . . . . . . . . Special Weapon 2 | . . . . . . . . 1 . . . . . . . . . . 1 . Impact Weapon . | . . . . . . . . . . . . . . . . . . . . . Slashing Weapon . | . . . . . . . . . . . . . . . . . . . . . Piercing Weapon . | . . . . . . . . . . . . . . . . . . . . . Special Melee Weapon . | . . . . . . . . . . . . . . . . . . . . . Unidentified Prototypes 15 | . 2 1 . . 2 . . . 2 . 1 . . . . . . . 7 . Parts Lost 8 | . . . . . . . . . 1 . . . . . . . . 2 1 4 Power 1 | . . . . . . . . . . . . . . . . . . . 1 . Propulsion . | . . . . . . . . . . . . . . . . . . . . . Utility 3 | . . . . . . . . . 1 . . . . . . . . 2 . . Weapon 4 | . . . . . . . . . . . . . . . . . . . . 4 Highest Loss Streak 3 | . . . . . . . . . 1 . . . . . . . . 2 1 3 To Critical Strikes . | . . . . . . . . . . . . . . . . . . . . . Average Backups 2 | . . 1 . 1 1 1 2 2 3 4 3 3 3 3 3 3 1 1 3 3 Power . | . . . . . . . . . . . . . . . . . . . . . Propulsion . | . . . . . . . . . . . . . . . . . . . . . Utility 1 | . . . . 1 1 1 2 2 2 3 2 2 1 2 2 2 1 1 2 3 Weapon . | . . 1 . . . . . . . . . . . . . . . . . . Tool/Special . | . . . . . . . . . . . . . . . . . . . . . Unused Backups 12 | . . . . . . . . . . . . . . 4 . 3 3 . . 2 Power . | . . . . . . . . . . . . . . . . . . . . . Propulsion 3 | . . . . . . . . . . . . . . . . . 3 . . . Utility 6 | . . . . . . . . . . . . . . 2 . 2 . . . 2 Weapon 2 | . . . . . . . . . . . . . . 2 . . . . . . Tool/Special 1 | . . . . . . . . . . . . . . . . 1 . . . . Average Slot Usage (%) 96 | . 93 97 91 81 95 92 93 99 98 100 99 100 98 95 96 100 100 98 96 83 Engine 3 | . 6 . . . 9 13 13 13 7 5 4 4 4 1 . . . . . . Core 1 | . 6 9 8 7 4 . . . . . . . . . . . . . 3 . Reactor 3 | . . . . . . . . . 3 5 4 4 4 6 8 8 8 8 4 8 Treads 10 | . 13 9 8 3 10 13 13 13 10 10 9 9 9 8 10 13 13 13 11 4 Wheel 6 | . 13 9 8 10 7 6 6 6 7 15 14 9 6 4 4 4 4 4 3 2 Device 19 | . 15 17 16 15 20 15 13 18 15 15 14 14 14 16 23 30 30 26 21 25 Storage 1 | . 3 . . . . 2 6 6 4 . . . . 1 . . . 1 3 . Processor 15 | . . 13 16 15 14 13 13 13 15 15 16 23 23 20 16 13 13 13 16 17 Hackware 6 | . 5 4 . . . . . . 7 10 9 9 9 8 8 8 8 8 7 8 Energy Cannon 2 | . . . . . . . . . 5 5 4 4 4 4 4 4 4 4 . . Ballistic Gun 21 | . 28 33 31 19 27 26 26 20 20 20 19 19 19 20 18 17 17 17 19 16 Peak Build Rating 158 | 6 29 41 42 39 51 53 55 59 88 87 94 94 96 124 129 131 131 130 158 151 Average Rating 89 | 4 13 34 36 34 45 50 50 55 78 87 88 94 95 108 122 130 130 125 141 140 On Entrance 76 | . 6 29 37 36 39 51 50 50 59 87 87 94 94 95 124 129 130 130 125 151 Avg Prop Armor Cover (%) 9 | 11 10 8 8 8 10 12 13 13 11 11 10 11 11 12 9 2 1 1 4 12 Naked Turns . | . . . . . . . . . . . . . . . . . . . . . Heaviest Build 76 | 7 16 19 19 20 32 36 39 34 59 55 59 55 60 70 71 72 72 73 76 70 Greatest Support 97 | 20 20 20 10 20 44 44 10 10 44 42 44 20 20 49 77 77 77 77 97 70 Greatest Overweight (x) 7 | . 1 1 1 1 3 3 3 3 5 1 2 2 5 6 7 7 7 . 4 4 Average Overweight (x) 2 | . . . 1 . 2 2 3 3 3 1 1 2 3 5 4 1 . . . 2 Largest Inventory Capacity 4 | 1 1 1 1 1 2 3 3 4 4 4 4 4 4 4 4 4 4 4 4 4 Average Capacity 3 | 1 1 1 1 1 1 2 3 3 4 4 4 4 4 4 4 4 4 4 4 4 Most Carried 4 | . 1 1 1 1 2 3 3 4 4 4 4 3 4 4 4 4 4 4 4 4 Average Carried 2 | . . . . 1 1 2 3 3 3 4 3 3 3 3 3 3 2 2 3 3 Final Capacity 4 | 1 1 1 1 1 2 3 3 4 4 4 4 4 4 4 4 4 4 4 4 4 Final Carried 4 | . 1 1 1 1 2 3 3 4 4 4 3 3 4 4 4 4 2 1 3 3 Class Distribution -------------------- 53% | Hacker-Gunner 17% | Hacker-Executioner 13% | Gunner 10% | Scavenger-Gunner 3% | Mutant Dominant Class ---------------- Mutant | -10/Materials Gunner | -10/Mines Gunner | -10/Exiles Gunner | -9/Mines Gunner | -8/Materials Gunner | -8/Storage Hacker-Gunner | -8/Recycling Hacker-Gunner | -8/Scraptown Hacker-Gunner | -6/Factory Scavenger-Gunner | -6/Lower Caves Scavenger-Gunner | -6/Lower Caves Scavenger-Gunner | -6/Data Miner Hacker-Gunner | -5/Proximity Caves Hacker-Executioner | -5/Factory Hacker-Gunner | -5/Upper Caves Hacker-Gunner | -5/Upper Caves Hacker-Gunner | -5/Warlord Hacker-Gunner | -4/Proximity Caves Hacker-Gunner | -4/Factory Hacker-Gunner | -4/Waste Resources | -11 -10 -10 -10 -9 -8 -8 -8 -8 -6 -6 -6 -6 -5 -5 -5 -5 -5 -4 -4 -4 ----------- Run | Yrd Mat Min Exi Min Mat Sto Rec Scr Fac Low Low Dat Pro Fac Upp Upp War Pro Fac Was Matter Collected 14303 | 296 417 413 70 854 715 476 644 93 1747 584 652 . 475 2273 1156 232 . 634 2307 265 Remotely . | . . . . . . . . . . . . . . . . . . . . . Salvage Created 14331 | 128 345 312 . 573 895 786 321 93 1924 367 648 . 619 2027 622 904 . 675 2302 790 Parts 927 | 10 39 17 . 28 95 72 28 10 116 18 31 . 19 145 26 19 . 41 197 16 Haulers Intercepted 7 | . 2 . . . 3 . . . 1 . . . . . . . . . 1 . Recyclers Shooed 12 | 2 . . . . . 1 2 . 1 . . . . 2 . . . . 4 . Parts Field Recycled . | . . . . . . . . . . . . . . . . . . . . . Retrieved Matter . | . . . . . . . . . . . . . . . . . . . . . Parts Self-Destructed 152 | . . . . . . . . . . 26 27 . 23 . 26 18 . 32 . . Prevented . | . . . . . . . . . . . . . . . . . . . . . Parts Restored . | . . . . . . . . . . . . . . . . . . . . . Kills | -11 -10 -10 -10 -9 -8 -8 -8 -8 -6 -6 -6 -6 -5 -5 -5 -5 -5 -4 -4 -4 ------- Run | Yrd Mat Min Exi Min Mat Sto Rec Scr Fac Low Low Dat Pro Fac Upp Upp War Pro Fac Was Combat Hostiles Destroyed 314 | . 11 11 . 18 28 24 9 2 42 8 14 . 14 46 15 8 . 17 43 4 Guns 259 | . 11 11 . 11 28 24 9 2 33 8 8 . 10 35 9 7 . 11 38 4 Cannons 40 | . . . . . . . . . 8 . 5 . 2 10 5 1 . 6 3 . AOE 11 | . . . . 7 . . . . 1 . . . . 1 . . . . 2 . Classes Destroyed 25 | 2 6 . . 1 3 . 1 3 1 . 3 . 2 . . . . . 2 1 Worker 13 | . . . . . 1 1 . . 2 . . . . 3 . . . . 6 . Builder 15 | . 1 . . . . . . . . . . . . 3 . . . . 11 . Tunneler 8 | 3 . . . 2 . . . . 1 . . . . . . . . . 2 . Hauler 7 | . 2 . . . 3 . . . 1 . . . . . . . . . 1 . Recycler 10 | 1 . . . 3 . 1 1 . 2 . . . . . . . . . 2 . Operator 5 | . 1 . . . . . . . 1 . . . . 2 . . . . 1 . Drone 4 | . . . . . . . . . . . . . 3 1 . . . . . . Watcher 11 | . 3 . . . . 1 . . 3 . . . . 1 . . . . 3 . Swarmer 66 | . 3 2 . 7 8 6 . . 17 5 . . 1 4 6 . . 2 5 . Grunt 110 | . 8 9 . 4 7 10 4 . 12 2 9 . 6 12 7 7 . 7 6 . Brawler 2 | . . . . . . . . . . . 1 . . . . . . 1 . . Duelist 1 | . . . . . . . . . . . . . . . . . . . 1 . Protector 1 | . . . . . . . 1 . . . . . . . . . . . . . Researcher 1 | . . . . . . . . . . . 1 . . . . . . . . . Sentry 48 | . . . . . 9 7 4 . 6 1 1 . 3 6 2 1 . 1 7 . Specialist 6 | . . . . . . . . . . . 2 . . 2 . . . . 2 . Hunter 27 | . . . . . 4 1 . . 4 . . . . 10 . . . 2 6 . Programmer 31 | . . . . . . . . . 3 . 1 . . 11 . . . 2 14 . Behemoth 2 | . . . . . . . . . . . . . 1 . . . . . 1 . Compactor 4 | . . . . . . . . . . . . . . . . . . . . 4 Explorer 1 | . . . . . . . . 1 . . . . . . . . . . . . Scientist 1 | . . . . . . . . 1 . . . . . . . . . . . . Scrapper 1 | . . . . . . . . 1 . . . . . . . . . . . . Decomposer 3 | . . . . . . . . . . . 3 . . . . . . . . . Assembled 7 | . . . . 7 . . . . . . . . . . . . . . . . Golem 1 | . . . . . . . . . . . . . . . . . . . 1 . Guerrilla 2 | . . . . . . . . . . . . . . . . . . 2 . . Best Kill Streak 12 | 4 3 2 . 6 12 7 5 3 12 4 9 . 5 8 7 4 . 7 11 3 Combat Bots Only 12 | . 3 2 . 6 12 7 5 2 9 4 9 . 5 7 6 4 . 7 8 3 Max Kills in Single Turn 6 | 1 2 2 . 3 2 2 2 1 3 1 1 . 1 3 4 2 . 1 6 2 Gunslinging 3 | . . 1 . 1 1 1 1 . 1 . . . . 1 3 . . . 1 1 Exploded 3 | . . . . 3 . . . . 1 . . . . 1 . . . . 2 . Melee . | . . . . . . . . . . . . . . . . . . . . . Uniques/NPCs Destroyed . | . . . . . . . . . . . . . . . . . . . . . Combat | -11 -10 -10 -10 -9 -8 -8 -8 -8 -6 -6 -6 -6 -5 -5 -5 -5 -5 -4 -4 -4 -------- Run | Yrd Mat Min Exi Min Mat Sto Rec Scr Fac Low Low Dat Pro Fac Upp Upp War Pro Fac Was Hostile Shots Fired 1378 | . 38 39 . 32 72 38 32 68 198 28 25 . 74 324 45 13 . 91 257 4 Missed 412 | . 11 13 . 10 22 14 7 22 60 10 9 . 18 92 12 2 . 30 80 . Hits 966 | . 27 26 . 22 50 24 25 46 138 18 16 . 56 232 33 11 . 61 177 4 Melee 19 | . . . . 2 . . . 1 . . . . 3 7 . . . . 2 4 Projectile 947 | . 27 26 . 20 50 24 25 45 138 18 16 . 53 225 33 11 . 61 175 . AOE 5 | . . . . . . . . . . . . . . 2 . . . . 3 . Critical Strikes 49 | . . . . 1 3 2 . 4 5 . 1 . 5 9 1 2 . 7 6 3 Part Disruptions 8 | . . . . . . . . 1 1 . 1 . . . . . 4 . 1 . Damage Taken 13800 | . 276 344 . 368 684 321 373 800 1664 175 238 . 807 2971 455 141 176 924 2920 163 Core 10910 | . 220 280 . 308 536 248 288 655 1306 138 194 . 642 2317 355 107 135 735 2310 136 Absorbed by Shields 3088 | . . . . . . . . . 380 72 56 . 216 942 198 66 54 348 750 6 Reduced by Siege Mode 35 | . . . . . . . . . . . . . . . . . . . 24 11 Redirected to Core 9735 | . 175 218 . 208 505 248 288 507 1175 116 153 . 560 2163 332 107 135 658 2088 99 Ignored by Resistances 1267 | . 19 22 . 8 22 14 21 2 107 36 21 . 102 311 61 15 . 99 386 21 Core Remaining (%) 72 | 100 . . . 60 . . . 27 . . . . 76 . . . . 100 . . Volleys Fired 714 | 9 36 21 1 28 47 42 16 6 88 12 29 . 30 137 22 15 8 38 107 22 Largest 7 | 2 3 4 1 3 4 4 4 4 5 5 5 . 5 6 7 5 1 5 5 5 Hottest 255 | 40 69 96 25 80 98 98 98 98 253 189 189 . 194 222 255 204 90 204 224 167 Shots Fired 2706 | 18 74 78 1 70 168 154 63 22 344 58 130 . 149 489 120 67 9 155 455 82 Gun 2350 | 18 73 78 1 60 168 154 63 21 278 48 106 . 119 369 102 53 . 117 440 82 Cannon 342 | . . . . . . . . . 66 10 24 . 30 120 18 14 9 38 13 . Launcher 11 | . 1 . . 10 . . . . . . . . . . . . . . . . Special 3 | . . . . . . . . 1 . . . . . . . . . . 2 . Kinetic 2350 | 18 73 78 1 60 168 154 63 21 278 48 106 . 119 369 102 53 . 117 440 82 Thermal 342 | . . . . . . . . . 66 10 24 . 30 120 18 14 9 38 13 . Explosive 11 | . 1 . . 10 . . . . . . . . . . . . . . . . Electromagnetic . | . . . . . . . . . . . . . . . . . . . . . Robot Hit Streak 76 | 7 21 9 . 7 23 15 13 12 22 6 15 . 27 76 31 33 . 32 34 18 Robot Miss Streak 5 | 1 3 5 . 2 2 3 1 1 3 4 2 . 2 4 2 1 . 1 4 1 Penetration Max 2 | . . . . . . . . . 1 1 1 . 1 1 1 1 . 1 2 1 Secondary Targets 32 | . 1 4 . 1 5 1 2 2 3 . . . . 2 4 1 . . 4 2 Max Gunslinging Chain 3 | . 1 1 . 1 1 1 1 1 1 . . . . 1 3 1 . . 1 1 Shots Hit Robots 1726 | 12 50 47 . 36 124 92 49 20 220 30 73 . 99 299 82 40 . 92 288 73 Core Hits 762 | 7 25 20 . 29 60 45 23 7 101 15 32 . 28 127 28 21 . 44 139 11 Critical Kills 29 | . . . . . . . . . 4 . 1 . 1 5 1 4 . 2 9 2 Critical Parts Destroyed 41 | . . . . . 1 . . . 1 . 1 . 3 4 2 1 . 1 27 . Critical Strikes 82 | . . . . . 1 . . . 5 . 2 . 4 10 3 5 . 3 37 12 Meltdown 3 | . . . . . . . . . . . 1 . 1 . 1 . . . . . Destroy 79 | . . . . . 1 . . . 5 . 1 . 3 10 2 5 . 3 37 12 Melee Attacks . | . . . . . . . . . . . . . . . . . . . . . Impact . | . . . . . . . . . . . . . . . . . . . . . Slashing . | . . . . . . . . . . . . . . . . . . . . . Piercing . | . . . . . . . . . . . . . . . . . . . . . Sneak Attacks . | . . . . . . . . . . . . . . . . . . . . . Combat Hostiles . | . . . . . . . . . . . . . . . . . . . . . Follow-up Attacks . | . . . . . . . . . . . . . . . . . . . . . Damage Inflicted 46911 | 122 791 803 . 1158 2082 1657 874 308 5744 716 1917 . 2693 8789 2137 1492 . 3003 10513 2112 Guns 36389 | 122 787 800 . 578 2080 1654 835 308 3450 585 1197 . 1947 6127 1566 1130 . 2127 8984 2112 Cannons 8001 | . . . . . . . . . 1638 131 720 . 746 2430 571 362 . 876 527 . Explosions 2443 | . . . . 580 . . . . 656 . . . . 225 . . . . 982 . Melee . | . . . . . . . . . . . . . . . . . . . . . Ramming 78 | . 4 3 . . 2 3 39 . . . . . . 7 . . . . 20 . Kinetic 36467 | 122 787 800 . 578 2080 1654 835 308 3528 585 1197 . 1947 6127 1566 1130 . 2127 8984 2112 Thermal 8913 | . . . . . . . . . 2011 131 720 . 746 2430 571 362 . 876 1066 . Explosive 1139 | . . . . 580 . . . . 205 . . . . . . . . . 354 . Electromagnetic 229 | . . . . . . . . . . . . . . 225 . . . . 4 . Impact . | . . . . . . . . . . . . . . . . . . . . . Slashing . | . . . . . . . . . . . . . . . . . . . . . Piercing . | . . . . . . . . . . . . . . . . . . . . . Entropic 85 | . . . . . . . . . . . . . . . . . . . 85 . Highest Corruption 21 | . . . . . 2 21 21 . 8 . 8 . . 3 8 . 10 13 19 16 Average Corruption 6 | . . . . . 2 3 21 . 2 . 3 . . 2 4 . 1 6 7 16 Corruption Purged 42 | . . . . . . . . . 8 . 5 . . 4 8 . 9 4 4 . Corruption Blocked 2 | . . . . . . . . . . . . . . 2 . . . . . . Effects 171 | . . . . . 8 10 38 . 16 . 8 . . 1 8 . 5 5 64 8 Message Errors 36 | . . . . . 2 2 6 . 1 . 2 . . . 1 . . 3 18 1 Matter Fused 37 | . . . . . 3 2 7 . 8 . 2 . . . 1 . 1 . 10 3 Heat Flow Errors 21 | . . . . . 1 1 7 . . . . . . . . . 3 . 9 . Energy Discharges 23 | . . . . . . 3 5 . 2 . 2 . . . . . 1 . 8 2 Parts Rejected 4 | . . . . . . . . . . . . . . . . . . . 3 1 Parts Fused 1 | . . . . . . . . . . . . . . . . . . . 1 . Data Loss (minor) 16 | . . . . . . . 3 . 3 . 1 . . . 2 . . 1 6 . Data Loss (major) 6 | . . . . . 1 1 3 . . . 1 . . . . . . . . . Misfires 9 | . . . . . 1 1 2 . 2 . . . . . . . . 1 2 . Alerts 6 | . . . . . . . 2 . . . . . . 1 1 . . . 2 . Misdirections 1 | . . . . . . . . . . . . . . . . . . . 1 . Weapon Failures 11 | . . . . . . . 3 . . . . . . . 3 . . . 4 1 Overload Shots . | . . . . . . . . . . . . . . . . . . . . . Overflow Damage 305 | . . . . 11 . . . . 40 . 5 . 21 86 . 24 . 48 70 . Projectiles 190 | . . . . . . . . . 6 . 5 . 21 86 . 24 . 48 . . Explosions 115 | . . . . 11 . . . . 34 . . . . . . . . . 70 . Melee . | . . . . . . . . . . . . . . . . . . . . . Knockbacks . | . . . . . . . . . . . . . . . . . . . . . Impact . | . . . . . . . . . . . . . . . . . . . . . Kinetic . | . . . . . . . . . . . . . . . . . . . . . Secondary . | . . . . . . . . . . . . . . . . . . . . . Self-Inflicted Damage 315 | . . . . 66 . . . . 59 . . . . . . . . . 190 . Shots 5 | . . . . 2 . . . . 1 . . . . . . . . . 2 . Rammed 15 | . 2 1 . . 2 2 4 . . . . . . 1 . . . . 3 . Targets Rammed 16 | . 2 1 . . 2 2 4 . . . . . . 1 . . . . 4 . Kicked . | . . . . . . . . . . . . . . . . . . . . . Crushed 1 | . . . . . . . . . . . . . . . . . . . 1 . Highest Temperature 392 | . 64 259 7 110 392 98 147 . 378 168 155 . 351 384 108 35 308 37 194 . Average Temperature 72 | . 17 92 7 36 114 35 38 . 114 72 79 . 100 69 17 9 124 11 36 . Received Heat Transfer 2715 | . 129 168 . 57 252 162 189 12 331 . 91 . 238 433 110 80 . 176 287 . Effects 10 | . . . . . 2 . . . 3 . . . 1 4 . . . . . . Shutdowns 1 | . . . . . . . . . . . . . . 1 . . . . . . Energy Bleed 1 | . . . . . 1 . . . . . . . . . . . . . . . Interference 3 | . . . . . . . . . . . . . . 3 . . . . . . Matter Decay 2 | . . . . . . . . . 1 . . . 1 . . . . . . . Damage (minor) 3 | . . . . . 1 . . . 2 . . . . . . . . . . . Siege Activations 2 | . . . . . . . . . . . . . . . . . . . 1 1 Total Turns 51 | . . . . . . . . . . . . . . . . . . . 23 28 Longest Duration 28 | . . . . . . . . . . . . . . . . . . . 23 28 Martial Activations . | . . . . . . . . . . . . . . . . . . . . . Shielding Activations . | . . . . . . . . . . . . . . . . . . . . . Robots Disrupted 1 | . . . . . . . . . . . . . . 1 . . . . . . Combat Hostiles . | . . . . . . . . . . . . . . . . . . . . . Robots Corrupted . | . . . . . . . . . . . . . . . . . . . . . Combat Hostiles . | . . . . . . . . . . . . . . . . . . . . . Parts Fried 1 | . . . . . . . . . . . . . . 1 . . . . . . Impact Corruptions . | . . . . . . . . . . . . . . . . . . . . . Robots Melted 4 | . . . . . . . . . . . 1 . 2 . 1 . . . . . Combat Hostiles 4 | . . . . . . . . . . . 1 . 2 . 1 . . . . . Parts Melted 26 | . . . . . 2 . . . 9 . 3 . 2 4 . . . 3 3 . Heat Transferred 9960 | . . . . . . . . . 2494 200 1050 . 1100 2385 592 370 . 925 844 . Parts Sabotaged . | . . . . . . . . . . . . . . . . . . . . . Parts Stolen 2 | . . . . . . . . . . . . . 1 1 . . . . . . Parts Stripped . | . . . . . . . . . . . . . . . . . . . . . Power Chain Reactions . | . . . . . . . . . . . . . . . . . . . . . Alert | -11 -10 -10 -10 -9 -8 -8 -8 -8 -6 -6 -6 -6 -5 -5 -5 -5 -5 -4 -4 -4 ------- Run | Yrd Mat Min Exi Min Mat Sto Rec Scr Fac Low Low Dat Pro Fac Upp Upp War Pro Fac Was Maximum Alert Level 4 | . . . . . 3 3 2 . 3 . . . . 4 . . . . 3 1 Low Security (%) 52 | 100 100 100 . 100 74 . . . 42 . . . . 33 . . . . 54 8 Level 1 18 | . . . . . . 25 91 . 17 . . . . 23 . . . . 11 91 Level 2 18 | . . . . . 19 53 8 . 26 . . . . 13 . . . . 32 . Level 3 6 | . . . . . 5 21 . . 13 . . . . 9 . . . . 1 . Level 4 4 | . . . . . . . . . . . . . . 20 . . . . . . Level 5 . | . . . . . . . . . . . . . . . . . . . . . High Security . | . . . . . . . . . . . . . . . . . . . . . Max Security . | . . . . . . . . . . . . . . . . . . . . . Peak Influence 1527 | 5 107 141 . 169 901 724 418 . 758 . . . . 1527 . . . . 720 251 Initial 361 | . 3 27 . . 29 361 263 . . . . . . 150 . . . . 23 251 Average 300 | 1 33 66 . 73 191 554 332 . 324 . . . . 516 . . . . 275 226 Influence Increases 11765 | 20 409 320 . 363 1516 721 454 . 1545 175 405 . 353 2600 320 205 . 360 1971 28 Destroy 0b10 Robot/C 6280 | . 220 240 . 220 560 480 160 . 840 160 280 . 300 1180 300 160 . 340 840 . Destroy 0b10 Robot/NC 415 | 20 35 . . 25 20 15 10 . 50 . . . 10 75 . 25 . . 130 . Destroy Leader 1186 | . 70 60 . 30 146 142 10 . 198 . 20 . 20 242 20 20 . 20 188 . Allied During Kill 240 | . . 20 . 5 . . . . . . . . 23 192 . . . . . . Successful Hack 222 | . 12 . . 6 26 5 18 . 57 . . . . 70 . . . . 28 . Select Force Hacks 300 | . 30 . . . 60 . 180 . . . . . . 30 . . . . . . Disable Machine 780 | . 30 . . . 15 30 . . 195 . . . . 225 . . . . 285 . Destroy Structure 862 | . 12 . . 77 4 4 1 . 70 . . . . 226 . . . . 440 28 Advance Influence 150 | . . . . . . . . . . . . . . 150 . . . . . . Partial Spotted 15 | . . . . . . . . . . . . . . 15 . . . . . . Lose Combat Pursuer 735 | . . . . . 105 45 75 . 135 15 105 . . 195 . . . . 60 . Miscellaneous 580 | . . . . . 580 . . . . . . . . . . . . . . . Influence Decreases 11596 | 15 343 338 53 288 735 901 755 375 808 536 398 383 353 1073 952 545 555 322 1291 577 Entered New Map 3931 | . 2 44 53 . 46 495 413 375 . 274 72 383 . . 566 171 555 . 15 467 Time Decay 5731 | 15 323 294 . 272 389 246 342 . 598 262 326 . 333 673 386 374 . 312 516 70 Lost Part 60 | . . . . . . . . . . . . . . . . . . 10 10 40 Lost Ally 356 | . . . . 16 . 160 . . 60 . . . 20 100 . . . . . . Purge Threat 1518 | . 18 . . . 300 . . . 150 . . . . 300 . . . . 750 . Squads Dispatched 61 | . 3 1 . . 7 6 1 . 11 . 1 . . 17 . . . . 14 . Investigation 15 | . 2 1 . . 2 3 . . 3 . . . . 2 . . . . 2 . Extermination 15 | . . . . . . . . . 4 . . . . 6 . . . . 5 . Reinforcement 20 | . 1 . . . 3 1 . . 3 . . . . 7 . . . . 5 . Assault 6 | . . . . . . . 1 . . . 1 . . 2 . . . . 2 . Garrison 5 | . . . . . 2 2 . . 1 . . . . . . . . . . . Intercept . | . . . . . . . . . . . . . . . . . . . . . Searches Triggered . | . . . . . . . . . . . . . . . . . . . . . Data Miner Redirects 2 | . . . . . . . . . . . . . . 1 . . . . 1 . Construction Impeded 3 | . . . . . . . . . 1 . . . . 1 . . . . 1 . Haulers Reinforced 2 | . . . . . . . . . 1 . . . . 1 . . . . . . Active Scanning Responses . | . . . . . . . . . . . . . . . . . . . . . Cargo Convoy Interrupts 2 | . . . . . . . . . 1 . . . . . . . . . 1 . Stealth | -11 -10 -10 -10 -9 -8 -8 -8 -8 -6 -6 -6 -6 -5 -5 -5 -5 -5 -4 -4 -4 --------- Run | Yrd Mat Min Exi Min Mat Sto Rec Scr Fac Low Low Dat Pro Fac Upp Upp War Pro Fac Was Distress Signals 20 | . 1 . . . 1 3 . . 2 . . . . 5 . . 2 . 6 . Communications Jammed 56 | . . . . . . . . . . . . . . 13 . . . . 43 . Distress Signals 55 | . . . . . . . . . . . . . . 13 . . . . 42 . Times Spotted 440 | . 19 14 1 22 37 30 16 7 61 12 16 . 16 83 15 7 2 16 62 4 Peak Tracking Total 11 | . 4 3 10 5 7 8 5 11 7 7 9 . 7 7 4 4 5 4 4 2 Tactical Retreats 29 | . . . . 1 5 2 2 . 4 1 3 . . 7 . . . . 4 . Traps | -11 -10 -10 -10 -9 -8 -8 -8 -8 -6 -6 -6 -6 -5 -5 -5 -5 -5 -4 -4 -4 ------- Run | Yrd Mat Min Exi Min Mat Sto Rec Scr Fac Low Low Dat Pro Fac Upp Upp War Pro Fac Was Traps Triggered 10 | . 1 1 . . 3 1 . . 1 . . . . . . . 2 . 1 . Indirectly . | . . . . . . . . . . . . . . . . . . . . . Trap Hack Attempts . | . . . . . . . . . . . . . . . . . . . . . Triggered . | . . . . . . . . . . . . . . . . . . . . . Disarmed . | . . . . . . . . . . . . . . . . . . . . . Reprogrammed . | . . . . . . . . . . . . . . . . . . . . . Reused 2 | . . . . . . . . . . . . . . . . . 2 . . . Traps Extracted . | . . . . . . . . . . . . . . . . . . . . . Installed 10 | . . 4 . . . . . . . . . . . . . . 6 . . . Triggered 2 | . . . . . . . . . . . . . . . . . 2 . . . Most Traps Carried 4 | . . . . . . . . . . . . . . . . 2 4 . . . Machines | -11 -10 -10 -10 -9 -8 -8 -8 -8 -6 -6 -6 -6 -5 -5 -5 -5 -5 -4 -4 -4 ---------- Run | Yrd Mat Min Exi Min Mat Sto Rec Scr Fac Low Low Dat Pro Fac Upp Upp War Pro Fac Was Machines Disabled 62 | . 2 . 1 . 1 2 . . 13 . 1 . 2 15 2 . . 4 19 . Max in Single Turn 4 | . 1 . 1 . 1 1 . . 4 . 1 . 1 1 1 . . 2 3 . Garrison Access 8 | . . . . . 1 1 . . 2 . . . . 2 . . . . 2 . Machines Repaired . | . . . . . . . . . . . . . . . . . . . . . Machines Dismantled . | . . . . . . . . . . . . . . . . . . . . . Machines Sabotaged . | . . . . . . . . . . . . . . . . . . . . . Overloaded Fab Kills . | . . . . . . . . . . . . . . . . . . . . . Hacking | -11 -10 -10 -10 -9 -8 -8 -8 -8 -6 -6 -6 -6 -5 -5 -5 -5 -5 -4 -4 -4 --------- Run | Yrd Mat Min Exi Min Mat Sto Rec Scr Fac Low Low Dat Pro Fac Upp Upp War Pro Fac Was Machines Accessed 91 | . 7 3 2 1 9 7 12 . 14 2 1 3 1 15 1 1 . 1 11 . Terminals 55 | . 6 . . 1 6 6 6 . 8 1 . . 1 11 1 1 . 1 6 . Fabricators 4 | . . . . . . . . . 2 . . . . . . . . . 2 . Repair Stations . | . . . . . . . . . . . . . . . . . . . . . Recycling Units 10 | . 1 . . . 2 . 6 . . . . . . 1 . . . . . . Scanalyzers 3 | . . . . . . . . . 1 . . . . 1 . . . . 1 . Garrison Access 9 | . . . . . 1 1 . . 3 . . . . 2 . . . . 2 . Total Hacks 321 | . 20 3 2 5 40 19 31 . 59 12 1 18 8 50 5 1 . 5 42 . Successful 203 | . 12 3 2 2 20 10 19 . 28 12 1 18 8 30 5 1 . 5 27 . Failed 118 | . 8 . . 3 20 9 12 . 31 . . . . 20 . . . . 15 . Catastrophic 12 | . . . . . . 1 2 . 4 . . . . 3 . . . . 2 . Database Lockouts . | . . . . . . . . . . . . . . . . . . . . . Manual 165 | . 18 . 1 6 28 8 22 . 31 . . . . 30 . . . . 21 . Terminals 240 | . 19 . . 5 34 17 25 . 40 7 . . 8 43 5 1 . 5 31 . Fabricators 14 | . . . . . . . . . 10 . . . . . . . . . 4 . Repair Stations . | . . . . . . . . . . . . . . . . . . . . . Recycling Units 10 | . 1 . . . 2 . 6 . . . . . . 1 . . . . . . Scanalyzers 11 | . . . . . . . . . 3 . . . . 4 . . . . 4 . Garrison Access 17 | . . . . . 4 2 . . 6 . . . . 2 . . . . 3 . Terminal Hacks 115 | . 4 3 2 2 8 5 7 . 8 12 1 18 8 14 5 1 . 5 12 . Record 34 | . . . 1 . . . . . . 12 1 1 8 . 5 1 . 5 . . Part Schematic 18 | . . . . . . . 4 . 2 . . 10 . 2 . . . . . . Robot Schematic 4 | . . . . . . . . . . . . 4 . . . . . . . . Robot Analysis 10 | . 2 . . 2 3 . 1 . 2 . . . . . . . . . . . Prototype ID Bank 11 | . 1 . . . 1 1 . . 1 . . 3 . 4 . . . . . . Open Door 6 | . . 3 . . . 3 . . . . . . . . . . . . . . Branch Access Points 2 | . . . . . . . . . . . . . . 1 . . . . 1 . Terminal Index 1 | . . . . . . . . . 1 . . . . . . . . . . . Fabricator Index 1 | . . . . . . . . . . . . . . . . . . . 1 . Scanalyzer Index 2 | . . . . . 1 . . . . . . . . . . . . . 1 . Alert Level 13 | . . . . . 1 1 2 . 1 . . . . 5 . . . . 3 . Unreport Threat 11 | . 1 . . . 2 . . . 1 . . . . 2 . . . . 5 . Recall Assault 1 | . . . . . . . . . . . . . . . . . . . 1 . Proto ID Catalog 1 | . . . 1 . . . . . . . . . . . . . . . . . Fabricator Hacks 8 | . . . . . . . . . 5 . . . . . . . . . 3 . Load Schematic 5 | . . . . . . . . . 3 . . . . . . . . . 2 . Build 3 | . . . . . . . . . 2 . . . . . . . . . 1 . Repair Station Hacks . | . . . . . . . . . . . . . . . . . . . . . Recycling Unit Hacks . | . . . . . . . . . . . . . . . . . . . . . Scanalyzer 6 | . . . . . . . . . . . . . . 3 . . . . 3 . Insert Component 2 | . . . . . . . . . . . . . . 1 . . . . 1 . Analyze 3 | . . . . . . . . . . . . . . 1 . . . . 2 . Retrieve Study 1 | . . . . . . . . . . . . . . 1 . . . . . . Garrison Access Hacks 8 | . . . . . 1 1 . . 2 . . . . 2 . . . . 2 . Seal Access 8 | . . . . . 1 1 . . 2 . . . . 2 . . . . 2 . Unauthorized Hacks 66 | . 8 . . . 11 4 12 . 13 . . . . 11 . . . . 7 . Terminals 52 | . 7 . . . 9 4 6 . 10 . . . . 10 . . . . 6 . Assimilate 1 | . . . . . . . . . . . . . . . . . . . 1 . Botnet 16 | . 2 . . . 3 2 1 . 3 . . . . 3 . . . . 2 . Operators 4 | . . . . . 1 . . . 1 . . . . 1 . . . . 1 . Skim 31 | . 5 . . . 5 2 5 . 6 . . . . 6 . . . . 2 . Fabricators 4 | . . . . . . . . . 3 . . . . . . . . . 1 . Prioritize 2 | . . . . . . . . . 2 . . . . . . . . . . . Recompile 2 | . . . . . . . . . 1 . . . . . . . . . 1 . Repair Stations . | . . . . . . . . . . . . . . . . . . . . . Recycling Units 10 | . 1 . . . 2 . 6 . . . . . . 1 . . . . . . Tunnel 10 | . 1 . . . 2 . 6 . . . . . . 1 . . . . . . Scanalyzers . | . . . . . . . . . . . . . . . . . . . . . Garrison Access . | . . . . . . . . . . . . . . . . . . . . . Data Cores Recovered 2 | . . . . . . . . . . . . . . 2 . . . . . . Used 1 | . . . . . . . . . . . . . . 1 . . . . . . Hacking Detections 54 | . 6 . . 1 7 5 6 . 10 1 . . . 10 1 . . . 7 . Full Trace Events 8 | . 1 . . 1 . 1 . . 2 . . . . 1 1 . . . 1 . Feedback Events 1 | . . . . . . . . . 1 . . . . . . . . . . . Corruption 1 | . . . . . . . . . 1 . . . . . . . . . . . Feedback Blocked . | . . . . . . . . . . . . . . . . . . . . . Robot Schematics Acquired 4 | . . . . . . . . . . . . 4 . . . . . . . . Robots Built . | . . . . . . . . . . . . . . . . . . . . . Authchips . | . . . . . . . . . . . . . . . . . . . . . Time . | . . . . . . . . . . . . . . . . . . . . . Total Robot Build Rating . | . . . . . . . . . . . . . . . . . . . . . Part Schematics Acquired 61 | . . . . . . . 4 . 19 4 2 10 1 10 . 3 . 2 5 1 Parts Built 6 | . . . . . . . . . 4 . . . . . . . . . 2 . Authchips 2 | . . . . . . . . . 2 . . . . . . . . . . . Time 179 | . . . . . . . . . 126 . . . . . . . . . 53 . Total Part Build Rating 28 | . . . . . . . . . 16 . . . . . . . . . 12 . Part Studies Acquired 1 | . . . . . . . . . . . . . . 1 . . . . . . Parts Repaired . | . . . . . . . . . . . . . . . . . . . . . Time . | . . . . . . . . . . . . . . . . . . . . . Parts Recycled . | . . . . . . . . . . . . . . . . . . . . . Recycled Matter . | . . . . . . . . . . . . . . . . . . . . . Retrieved Matter . | . . . . . . . . . . . . . . . . . . . . . Retrieved Components . | . . . . . . . . . . . . . . . . . . . . . Parts Scanalyzed 2 | . . . . . . . . . . . . . . 1 . . . . 1 . Part Schematics Acquired 2 | . . . . . . . . . . . . . . 1 . . . . 1 . Parts Damaged . | . . . . . . . . . . . . . . . . . . . . . Bothacking | -11 -10 -10 -10 -9 -8 -8 -8 -8 -6 -6 -6 -6 -5 -5 -5 -5 -5 -4 -4 -4 ------------ Run | Yrd Mat Min Exi Min Mat Sto Rec Scr Fac Low Low Dat Pro Fac Upp Upp War Pro Fac Was Used RIF Installer . | . . . . . . . . . . . . . . . . . . . . . Robots Hacked 1 | . . . . . . . . . . . . . . . . . . . 1 . Non-combat 1 | . . . . . . . . . . . . . . . . . . . 1 . Combat . | . . . . . . . . . . . . . . . . . . . . . Robot Hacks Applied 2 | . . . . . . . . . . . . . . . . . . . 2 . find_chute 2 | . . . . . . . . . . . . . . . . . . . 2 . Relay Couplers Released 3 | . . . . . . . . . . . . . . 3 . . . . . . Machine Destruction 1 | . . . . . . . . . . . . . . 1 . . . . . . Programmers 2 | . . . . . . . . . . . . . . 2 . . . . . . Fabnet Peak Effective % . | . . . . . . . . . . . . . . . . . . . . . Robots Rewired 2 | . . . . . . . . . . . 2 . . . . . . . . . Allies Hacked . | . . . . . . . . . . . . . . . . . . . . . Hacks Repelled . | . . . . . . . . . . . . . . . . . . . . . Allies | -11 -10 -10 -10 -9 -8 -8 -8 -8 -6 -6 -6 -6 -5 -5 -5 -5 -5 -4 -4 -4 -------- Run | Yrd Mat Min Exi Min Mat Sto Rec Scr Fac Low Low Dat Pro Fac Upp Upp War Pro Fac Was Total Allies 16 | . . 3 . 1 . . . . 3 . 2 . . 7 . . . . . . Largest Group 7 | . . 3 3 1 . . . . 3 . 2 2 2 7 . . . . . . Highest-Rated Group 305 | . . 70 70 31 . . . . 123 . 61 61 61 305 . . . . . . Highest-Rated Ally 47 | . . 31 31 31 . . . . 41 . 32 32 32 47 . . . . . . Total Orders 6 | . . 1 . . . 5 . . . . . . . . . . . . . . EXPLORE 5 | . . . . . . 5 . . . . . . . . . . . . . . RETURN 1 | . . 1 . . . . . . . . . . . . . . . . . . Ally Attacks 106 | . . 4 . 3 . . . . 4 . . . 15 80 . . . . . . Total Damage 2069 | . . 41 . 64 . . . . 101 . . . 291 1572 . . . . . . Kills 26 | . . 1 . 2 . . . . . . . . 3 20 . . . . . . Allies Corrupted . | . . . . . . . . . . . . . . . . . . . . . Allies Melted . | . . . . . . . . . . . . . . . . . . . . . X0-1V1 Amusement Gains 376 | . 6 10 60 20 30 . 40 76 49 . . . 5 . . . 50 . 30 . Good Acts 78 | . . 5 . 4 2 . 4 . 12 1 1 . 2 14 7 8 7 2 9 . Bad Acts 101 | . . 1 . 4 7 6 3 . 11 3 4 . 7 20 3 2 6 8 15 1 Intel | -11 -10 -10 -10 -9 -8 -8 -8 -8 -6 -6 -6 -6 -5 -5 -5 -5 -5 -4 -4 -4 ------- Run | Yrd Mat Min Exi Min Mat Sto Rec Scr Fac Low Low Dat Pro Fac Upp Upp War Pro Fac Was Active Infowar (turns) 19483 | 7 1087 632 367 654 1160 521 772 715 2300 573 713 94 893 2744 907 874 1019 1130 2168 153 Sensors 17799 | . . 330 366 654 1160 521 772 715 2300 573 713 94 893 2744 907 874 1019 1130 1886 148 Seismic 1396 | 7 1087 302 . . . . . . . . . . . . . . . . . . Cloaking 1 | . . . 1 . . . . . . . . . . . . . . . . . Jamming 7380 | . . . . . . . . . . . . . . 1254 907 874 1019 1130 2043 153 Robot Analysis Total 10 | . 2 . . 2 3 . 1 . 2 . . . . . . . . . . . Derelict Logs Recovered 16 | . . 1 . 3 . . . . . 2 2 . 2 . 1 2 . 3 . . Drone Launches 37 | . . 1 . . . 36 . . . . . . . . . . . . . . Drone Recoveries 21 | . . 1 . . . 20 . . . . . . . . . . . . . . Exploration | -11 -10 -10 -10 -9 -8 -8 -8 -8 -6 -6 -6 -6 -5 -5 -5 -5 -5 -4 -4 -4 ------------- Run | Yrd Mat Min Exi Min Mat Sto Rec Scr Fac Low Low Dat Pro Fac Upp Upp War Pro Fac Was Turns Passed 19899 | 75 1087 648 372 654 1160 521 772 715 2441 573 738 94 893 2754 907 874 1019 1130 2319 153 Spaces Moved 11299 | 36 727 531 381 586 765 290 481 252 1503 482 535 75 568 1317 476 493 166 605 993 37 Core 6 | 6 . . . . . . . . . . . . . . . . . . . . Treads 2240 | 2 70 1 . 3 21 10 . . 2 . 11 . . 7 146 407 161 605 784 10 Legs . | . . . . . . . . . . . . . . . . . . . . . Wheels 9053 | 28 657 530 381 583 744 280 481 252 1501 482 524 75 568 1310 330 86 5 . 209 27 Hover . | . . . . . . . . . . . . . . . . . . . . . Flight . | . . . . . . . . . . . . . . . . . . . . . Fastest Speed 50 | 50 80 95 95 80 80 110 125 125 105 108 101 110 110 145 145 158 158 158 158 150 Average Speed 130 | 79 97 95 95 89 113 122 125 125 131 108 105 110 131 158 160 160 168 158 162 168 Slowest Speed 330 | 160 160 160 95 160 240 145 125 125 225 108 225 110 155 237 175 175 330 158 180 180 Overloaded Moves . | . . . . . . . . . . . . . . . . . . . . . Propulsion Burnouts . | . . . . . . . . . . . . . . . . . . . . . Robots Hopped . | . . . . . . . . . . . . . . . . . . . . . Potential Cave-ins 6 | . . . . . . . . . . . . . 2 . . . . 4 . . Cave-ins Triggered 1 | . . . . . . . . . . . . . . . . . . 1 . . Time Travels 1 | . . . 1 . . . . . . . . . . . . . . . . . Exploration Rate (%) 61 | 3 95 89 65 98 71 64 89 31 50 70 78 70 82 45 71 81 16 70 37 18 Regions Visited 20 Branch Regions 14 Pre-discovered Areas 24 | . 1 2 1 . 2 . 6 . 2 2 . 1 1 3 1 . . 2 . . Known Exits Taken 18 | . 1 1 1 1 1 1 1 1 1 1 1 1 1 1 1 1 1 1 . . Unknown Exits Taken 1 | 1 . . . . . . . . . . . . . . . . . . . . Scrap Searched 19 | . . 1 . 1 . . . . . 2 3 . 2 . 2 3 . 5 . . Spaces Dug 63 | . . . . . . . . . 4 . 1 . . 32 . . 1 5 20 . Terrain Destroyed 646 | . 8 . . 106 . . . . 65 6 9 . 12 77 18 25 9 53 242 16 Melee . | . . . . . . . . . . . . . . . . . . . . . Projectile 410 | . . . . . . . . . 13 6 8 . 12 77 17 25 9 53 174 16 AOE 234 | . 8 . . 106 . . . . 52 . . . . . . . . . 68 . Terrain Rammed . | . . . . . . . . . . . . . . . . . . . . . Walls Destroyed . | . . . . . . . . . . . . . . . . . . . . . Machines Disabled . | . . . . . . . . . . . . . . . . . . . . . Actions | -11 -10 -10 -10 -9 -8 -8 -8 -8 -6 -6 -6 -6 -5 -5 -5 -5 -5 -4 -4 -4 --------- Run | Yrd Mat Min Exi Min Mat Sto Rec Scr Fac Low Low Dat Pro Fac Upp Upp War Pro Fac Was Total 15007 | 63 1046 636 391 669 978 392 626 642 1781 504 639 86 635 1706 565 541 901 697 1434 75 Wait 2083 | 13 246 47 . 41 86 26 106 379 55 3 17 12 8 105 16 . 712 11 198 2 Move 11280 | 35 726 530 380 585 764 289 480 251 1502 481 534 74 567 1316 475 492 165 604 993 37 Hop . | . . . . . . . . . . . . . . . . . . . . . Pick Up 43 | . 2 1 2 . 2 2 . . 6 . 2 . 1 6 6 4 3 1 4 1 Fast Attach 109 | 6 6 7 3 5 11 3 1 3 20 . 6 . 3 8 4 1 . 1 20 1 Attach 14 | . 1 . . . . 1 . . 4 . 2 . 1 2 1 . . 2 . . Detach 8 | . . . . . . . . 1 . . 1 . . 1 . . . 1 4 . Swap 26 | . 5 1 . . 4 . . 1 5 . 1 . 1 3 1 . . . 4 . Drop 110 | . 6 6 5 3 10 3 1 1 16 . 5 . 1 11 8 6 7 1 19 1 Fire 714 | 9 36 21 1 28 47 42 16 6 88 12 29 . 30 137 22 15 8 38 107 22 Melee . | . . . . . . . . . . . . . . . . . . . . . Ram 1 | . . . . . . . . . . . . . . . . . . . 1 . Kick . | . . . . . . . . . . . . . . . . . . . . . Crush 16 | . 2 1 . . 2 2 4 . . . . . . 1 . . . . 4 . Escape Stasis . | . . . . . . . . . . . . . . . . . . . . . Rewire 7 | . . . . . . . . . . . 7 . . . . . . . . . Trap 10 | . . 4 . . . . . . . . . . . . . . 6 . . . Miscellaneous 586 | . 16 18 . 7 52 24 18 . 85 8 35 . 23 116 32 23 . 38 80 11 Route ------- -11/Scrapyard -10/Materials (discovered 5 exits: *Mat x3 / *Min / [*Sub]) -10/Mines (discovered 2 exits: *Mat / *Exi) -10/Exiles (discovered 2 exits: *Min x2) -9/Mines (discovered 2 exits: *Mat x2) -8/Materials (discovered 3 exits: *Fac x2 / *Sto) -8/Storage (discovered 2 exits: *Fac / *Rec) -8/Recycling (discovered 2 exits: *Fac / *Scr) -8/Scraptown -6/Factory (discovered 6 exits: *Fac x4 / *Low x2) -6/Lower Caves (discovered 2 exits: *Low / *Dat) -6/Lower Caves (discovered 2 exits: *Fac / *Dat) -6/Data Miner -5/Proximity Caves -5/Factory (discovered 5 exits: *Fac x3 / *Upp x2) -5/Upper Caves -5/Upper Caves (discovered 2 exits: Fac / *War) -5/Warlord -4/Proximity Caves -4/Factory (discovered 5 exits: *Res / Upp x2 / *Ext x2) -4/Waste History --------- Turn | Location | Event 1 | -11/Scrapyard | Upgraded with Propulsion slot (x1) 1 | -11/Scrapyard | Upgraded with Utility slot (x1) 1 | -11/Scrapyard | Upgraded with Weapon slot (x1) 2 | -11/Scrapyard | Discovered new exit (range 17) 76 | -11/Scrapyard | Entered Materials 247 | -10/Materials | Discovered new exit (range 16) 300 | -10/Materials | Build established: Mutant 443 | -10/Materials | Discovered new exit (range 3) 797 | -10/Materials | Discovered new exit (range 16) 973 | -10/Materials | Prayed at D.C.S.S. Altar Unit 973 | -10/Materials | Reached level 2 973 | -10/Materials | Reached level 3 973 | -10/Materials | Upgraded with Utility slot (x2) 973 | -10/Materials | Upgraded with Weapon slot (x1) 976 | -10/Materials | Discovered new exit (range 3) 983 | -10/Materials | Discovered new exit (range 11) 1162 | -10/Materials | Identified exit to Mines 1163 | -10/Materials | Entered Mines 1165 | -10/Mines | Reached level 4 1209 | -10/Mines | X0-1V1 activates XOMVISION 1263 | -10/Mines | Deemed a non-threat by the Exiles lab entrance 1263 | -10/Mines | Discovered new exit (range 5) 1266 | -10/Mines | Build established: Hacker-Gunner 1266 | -10/Mines | Identified exit to Exiles 1296 | -10/Mines | Met a Derelict shopkeep closing up shop 1298 | -10/Mines | Upgraded with Weapon slot (x1) 1354 | -10/Mines | Escorted by a lone wolf Derelict 1374 | -10/Mines | Learned location of Storage (-8) 1431 | -10/Mines | Found a Scrap Suit stashed away for nefarious purposes 1444 | -10/Mines | X0-1V1 activates XOMVISION 1445 | -10/Mines | Discovered new exit (range 10) 1454 | -10/Mines | Met a Derelict who couldn't figure out how to use a Trap Extractor 1454 | -10/Mines | Identified exit to Materials 1586 | -10/Mines | Reached level 5 1667 | -10/Mines | Found the Drone Emporium 1671 | -10/Mines | Found Prototype Device 1671 | -10/Mines | Identified Splice Drone Bay 1672 | -10/Mines | X0-1V1 mutated your Utility slot to Power slot 1675 | -10/Mines | Upgraded with Utility slot (x1) 1758 | -10/Mines | Build established: Gunner 1811 | -10/Mines | Entered Exiles 1811 | -10/Exiles | Accompanied by 3 allies 1824 | -10/Exiles | Discovered new exit (range 17) 1834 | -10/Exiles | Met 8R-AWN 1841 | -10/Exiles | Led the pair of lost Derelicts to a safe place 1850 | -10/Exiles | Met EX-HEX 1886 | -10/Exiles | Met EX-DEC 1892 | -10/Exiles | Learned location of Zion (-7) 1906 | -10/Exiles | Met EX-BIN 1924 | -10/Exiles | Aligned with FarCom system 1925 | -10/Exiles | Given EX-Vault access code 1946 | -10/Exiles | Opened EX-Vault 1953 | -10/Exiles | Found Chronowheel 1953 | -10/Exiles | Activated Chronowheel 1953 | -10/Exiles | Spacetime reconverged on an earlier point 1955 | -10/Exiles | Found Cloak of Protection 1979 | -10/Exiles | Warned to stay clear of 0b10 Research branches 2044 | -10/Exiles | Discovered new exit (range 15) 2057 | -10/Exiles | Identified exit to Mines 2157 | -10/Exiles | Attacked by the Exiles 2183 | -10/Exiles | Entered Mines 2186 | -9/Mines | Received a Mining Laser from a helpful Derelict 2211 | -9/Mines | Discovered new exit (range 8) 2233 | -9/Mines | Identified exit to Materials 2278 | -9/Mines | Learned 4 Materials zone layouts 2282 | -9/Mines | X0-1V1 mutated your Weapon slot to Utility slot 2285 | -9/Mines | Learned Materials stockpile data 2294 | -9/Mines | Assembled infested the area 2299 | -9/Mines | Assisted by a Guerilla fighting off Assembled 2462 | -9/Mines | Discovered exit to Materials (range 15) 2500 | -9/Mines | Reached level 6 2550 | -9/Mines | X0-1V1 sent hostile G-34 Mercenary (x3) 2551 | -9/Mines | Core integrity fell below 50% 2621 | -9/Mines | Learned 4 Materials zone layouts 2814 | -9/Mines | A weapon hastily lodged in a ceiling crevice suddenly fell to the ground 2816 | -9/Mines | Upgraded with Weapon slot (x1) 2837 | -9/Mines | Entered Materials 2838 | -8/Materials | Identified exit to Storage 2839 | -8/Materials | Reached level 7 2962 | -8/Materials | Garrison activated, responded to threat 3027 | -8/Materials | Core integrity fell below 50% 3081 | -8/Materials | Met 7R-MNS 3093 | -8/Materials | Garrison activated, responded to threat 3120 | -8/Materials | Discovered new exit (range 16) 3243 | -8/Materials | Reached level 8 3313 | -8/Materials | Discovered new exit (range 7) 3320 | -8/Materials | Identified exit to Factory 3326 | -8/Materials | Upgraded with Propulsion slot (x1) 3348 | -8/Materials | Build established: Scavenger-Gunner 3486 | -8/Materials | X0-1V1 foreshadows a heat wave 3689 | -8/Materials | Ambient heat levels rising (+10) 3706 | -8/Materials | X0-1V1 added 0b10 threat records associated with you (major) 3706 | -8/Materials | Reached level 9 3716 | -8/Materials | Build established: Gunner 3762 | -8/Materials | X0-1V1 enhanced Transport squad support 3820 | -8/Materials | Reached level 10 3831 | -8/Materials | Ambient heat levels rising (+10) 3862 | -8/Materials | Destroyed 12 combat bots 3930 | -8/Materials | Learned Factory security intel 3969 | -8/Materials | Learned Storage stockpile data 3991 | -8/Materials | X0-1V1 added 0b10 threat records associated with you (major) 3997 | -8/Materials | Entered Storage 3999 | -8/Storage | Reached level 11 4028 | -8/Storage | X0-1V1 redirected Transport squads to designated parking area 4093 | -8/Storage | X0-1V1 mutated your Propulsion slot to Utility slot 4093 | -8/Storage | Upgraded with Propulsion slot (x1) 4122 | -8/Storage | Lost 8 allies 4142 | -8/Storage | Garrison activated, responded to threat 4147 | -8/Storage | Destroyed 7 combat bots 4150 | -8/Storage | Reached level 12 4201 | -8/Storage | Lost 6 allies 4341 | -8/Storage | Discovered exit to Factory (range 12) 4465 | -8/Storage | System corruption reached 10% 4483 | -8/Storage | Sensors blinded by X0-1V1 4513 | -8/Storage | Used back door to open Recycling access 4513 | -8/Storage | Discovered new exit (range 5) 4516 | -8/Storage | Identified exit to Recycling 4518 | -8/Storage | Entered Recycling 4520 | -8/Recycling | Reached level 13 4809 | -8/Recycling | Discovered new exit (range 16) 4824 | -8/Recycling | Build established: Hacker-Gunner 4840 | -8/Recycling | Scanned before Scraplab entrance 4880 | -8/Recycling | X0-1V1 activates XOMVISION 5220 | -8/Recycling | Learned 4 Lower Caves zone layouts 5279 | -8/Recycling | Entered Scraplab 5289 | -8/Recycling | Discovered new exit (range 2) 5289 | -8/Recycling | Identified exit to Scraptown 5290 | -8/Recycling | Entered Scraptown 5290 | -8/Scraptown | System corruption cleaned by C-Scrubber 5433 | -8/Scraptown | Visited Spacefarers 5445 | -8/Scraptown | Visited Awakened 5460 | -8/Scraptown | Visited Shadow of the Wyrm 5480 | -8/Scraptown | Visited The Evicted 5498 | -8/Scraptown | Visited Red Mages 5518 | -8/Scraptown | Heard Great Nut preacher, LISTEN AND RECITE! 5555 | -8/Scraptown | Discovered new exit (range 11) 5566 | -8/Scraptown | Identified exit to Factory 5967 | -8/Scraptown | Attached CPS modules to BU-HTA(c) 5968 | -8/Scraptown | Attacked by Scraptown defenders 5999 | -8/Scraptown | Core integrity fell below 20% 6005 | -8/Scraptown | Entered Factory 6006 | -6/Factory | Core integrity fell below 50% 6007 | -6/Factory | Reached level 14 6182 | -6/Factory | Upgraded with Weapon slot (x1) 6189 | -6/Factory | Upgraded with Utility slot (x1) 6211 | -6/Factory | Tech Extrapolator generated special schematic: Deep Structural Scanner 6285 | -6/Factory | Discovered new exit (range 13) 6325 | -6/Factory | Reached level 15 6437 | -6/Factory | Discovered new exit (range 5) 6444 | -6/Factory | Identified exit to Lower Caves 6452 | -6/Factory | Tech Extrapolator generated special schematic: Machine Rigger 6493 | -6/Factory | Identified exit to Factory 6493 | -6/Factory | X0-1V1 revealed exit location to -5/Factory 6584 | -6/Factory | Upgraded with Utility slot (x2) 6653 | -6/Factory | X0-1V1 revealed exit location to -6/Lower Caves 6900 | -6/Factory | X0-1V1 sent you into danger 6907 | -6/Factory | Reached level 16 7035 | -6/Factory | Garrison activated, responded to threat 7067 | -6/Factory | Reached level 17 7091 | -6/Factory | Destroyed 9 combat bots 7250 | -6/Factory | Fabricated System Restoration Module (x2) 7306 | -6/Factory | Upgraded with Utility slot (x1) 7371 | -6/Factory | X0-1V1 mutated your Utility slot to Propulsion slot 7471 | -6/Factory | Learned 4 Extension zone layouts 7476 | -6/Factory | Sensors blinded by X0-1V1 7531 | -6/Factory | Learned 2 Upper Caves zone layouts 7536 | -6/Factory | Discovered exit to Factory (range 13) 7580 | -6/Factory | Learned location of Upper Caves (-4) 7594 | -6/Factory | X0-1V1 redirected Transport squads to designated parking area 7621 | -6/Factory | Learned location of 2 exits from Lower Caves 7653 | -6/Factory | Loaded intel: 6 fabricator locations 7693 | -6/Factory | Learned 4 Lower Caves zone layouts 7731 | -6/Factory | X0-1V1 revealed exit location to -5/Factory 7745 | -6/Factory | Learned location of Lower Caves (-6) 7813 | -6/Factory | Reached level 18 7840 | -6/Factory | Destroyed 7 combat bots 7933 | -6/Factory | X0-1V1 mutated your Utility slot to Propulsion slot 7940 | -6/Factory | Tech Extrapolator generated special schematic: Energy Deflector 8115 | -6/Factory | X0-1V1 enhanced Transport squad support 8178 | -6/Factory | Watched by a mysterious "MATRIX" hacker 8220 | -6/Factory | Fabricated System Restoration Module (x2) 8293 | -6/Factory | X0-1V1 sent you to a vault 8329 | -6/Factory | Cargo convoy interrupted 8446 | -6/Factory | Entered Lower Caves 8447 | -6/Lower Caves | Identified exit to Lower Caves 8477 | -6/Lower Caves | X0-1V1 vaporized surrounding terrain (radius 18) 8666 | -6/Lower Caves | Build established: Scavenger-Gunner 8692 | -6/Lower Caves | Encountered a Warlord checkpoint 8749 | -6/Lower Caves | Attracted the attention of an 0b10 base 8798 | -6/Lower Caves | Learned Research stockpile data 8798 | -6/Lower Caves | Learned Extension security intel 8798 | -6/Lower Caves | Learned Factory terminal intel 8808 | -6/Lower Caves | X0-1V1 sent hostile S-27 Virus (x4) 8809 | -6/Lower Caves | Reached level 19 8836 | -6/Lower Caves | Learned Factory security intel 8920 | -6/Lower Caves | Sensors blinded by X0-1V1 8938 | -6/Lower Caves | A Derelict revealed a hidden shortcut to meet someone special 8941 | -6/Lower Caves | Identified exit to Data Miner 8992 | -6/Lower Caves | Learned location of Armory (-3) 8992 | -6/Lower Caves | Learned Factory terminal intel 9019 | -6/Lower Caves | Entered another Lower Caves area 9032 | -6/Lower Caves | Learned Factory terminal intel 9052 | -6/Lower Caves | Discovered exit to Factory (range 9) 9477 | -6/Lower Caves | Found Alien Artifact 9477 | -6/Lower Caves | Identified Core Expander 9477 | -6/Lower Caves | Installed Core Expander, added new Utility slot 9517 | -6/Lower Caves | Entered a destroyed Warlord outpost 9530 | -6/Lower Caves | Learned Factory trap positions 9602 | -6/Lower Caves | X0-1V1 sent you into danger 9604 | -6/Lower Caves | Attracted the attention of an 0b10 outpost 9605 | -6/Lower Caves | X0-1V1 sent hostile X-62 Marksman (x2) 9700 | -6/Lower Caves | Destroyed 9 combat bots 9713 | -6/Lower Caves | X0-1V1 mutated your Propulsion slot to Utility slot 9757 | -6/Lower Caves | Entered Data Miner 9757 | -6/Data Miner | Accompanied by 2 allies 9757 | -6/Data Miner | Discovered new exit (range 6) 9764 | -6/Data Miner | Identified exit to Proximity Caves 9777 | -6/Data Miner | Met Data Miner 9798 | -6/Data Miner | Learned location of Section 7 (-3) 9814 | -6/Data Miner | Received God Mode back door access code from Data Miner 9851 | -6/Data Miner | Entered Proximity Caves 9851 | -5/Proximity Caves | Accompanied by 2 allies 9853 | -5/Proximity Caves | Reached level 20 9854 | -5/Proximity Caves | Spotter reported a threat 9949 | -5/Proximity Caves | Attracted the attention of an 0b10 base 10022 | -5/Proximity Caves | Learned location of 1 exit from Factory 10022 | -5/Proximity Caves | Learned Factory trap positions 10022 | -5/Proximity Caves | Learned Armory trap positions 10022 | -5/Proximity Caves | Learned Research emergency access door positions 10022 | -5/Proximity Caves | Learned Factory security intel 10022 | -5/Proximity Caves | Learned Armory security intel 10022 | -5/Proximity Caves | Learned Armory terminal intel 10097 | -5/Proximity Caves | Spotted B-75 Beast 10121 | -5/Proximity Caves | Destroyed B-75 Beast 10171 | -5/Proximity Caves | Reached level 21 10187 | -5/Proximity Caves | Build established: Hacker-Gunner 10251 | -5/Proximity Caves | X0-1V1 revealed exit location to -5/Factory 10280 | -5/Proximity Caves | X0-1V1 mutated your Propulsion slot to Utility slot 10289 | -5/Proximity Caves | Lgt. Antimatter Reactor reconfigured into Item Mimic 10305 | -5/Proximity Caves | X0-1V1 rewrote Guardian 5a IFF filter 10463 | -5/Proximity Caves | Attracted the attention of an 0b10 checkpoint 10598 | -5/Proximity Caves | X0-1V1 mutated your Utility slot to Weapon slot 10606 | -5/Proximity Caves | Learned Factory stockpile data 10667 | -5/Proximity Caves | X0-1V1 vaporized surrounding terrain (radius 18) 10744 | -5/Proximity Caves | Entered Factory 10745 | -5/Factory | Identified exit to Factory 10746 | -5/Factory | Loaded intel: 98 trap records 10749 | -5/Factory | Loaded intel: 26 terminal locations 10808 | -5/Factory | X0-1V1 enhanced Transport squad support 10850 | -5/Factory | Discovered exit to Factory (range 18) 10901 | -5/Factory | Build established: Hacker-Executioner 11116 | -5/Factory | Identified exit to Upper Caves 11205 | -5/Factory | Reached level 22 11454 | -5/Factory | Upgraded with Utility slot (x1) 11626 | -5/Factory | Learned location of 1 exit from Testing 11724 | -5/Factory | Learned location of 1 exit from Upper Caves 11785 | -5/Factory | Learned location of Upper Caves (-4) 11801 | -5/Factory | Learned Research terminal intel 11811 | -5/Factory | Core integrity fell below 50% 11827 | -5/Factory | Learned location of Proximity Caves (-3) 11839 | -5/Factory | X0-1V1 upgraded hostiles (x2) 11861 | -5/Factory | Core integrity fell below 20% 11864 | -5/Factory | Learned location of 1 exit from Upper Caves 11962 | -5/Factory | X0-1V1 redirected Transport squads to designated parking area 11967 | -5/Factory | X0-1V1 vaporized surrounding terrain (radius 24) 12052 | -5/Factory | X0-1V1 announced a LAN party 12076 | -5/Factory | Reached level 23 12284 | -5/Factory | Imp. Corruption Screen reconfigured into Item Mimic 12317 | -5/Factory | X0-1V1 sent allied Guerrilla (x3) 12347 | -5/Factory | Destroyed 7 combat bots 12567 | -5/Factory | X0-1V1 sent you to a vault 12696 | -5/Factory | Core integrity restored by X0-1V1 (+189) 12844 | -5/Factory | First assault squad dispatched 12918 | -5/Factory | Incoming investigation squad redirected 12983 | -5/Factory | Lost 4 allies 13028 | -5/Factory | X0-1V1 revealed exit location to -4/Factory 13121 | -5/Factory | Weapon slot count temporarily expanded by X0-1V1 (+3) 13358 | -5/Factory | Core integrity restored by X0-1V1 (+144) 13378 | -5/Factory | Destroyed 7 combat bots 13498 | -5/Factory | Entered Upper Caves 13499 | -5/Upper Caves | Identified exit to Upper Caves 13500 | -5/Upper Caves | Reached level 24 13577 | -5/Upper Caves | X0-1V1 activates XOMVISION 13677 | -5/Upper Caves | X0-1V1 mutated your Weapon slot to Propulsion slot 13872 | -5/Upper Caves | Learned Factory security intel 13939 | -5/Upper Caves | Attracted the attention of an 0b10 checkpoint 13985 | -5/Upper Caves | Upgraded with Utility slot (x1) 13990 | -5/Upper Caves | X0-1V1 activates XOMVISION 14006 | -5/Upper Caves | Build established: Hacker-Gunner 14074 | -5/Upper Caves | Attracted the attention of an 0b10 base 14181 | -5/Upper Caves | Learned 8 Research zone layouts 14181 | -5/Upper Caves | Learned 6 Proximity Caves zone layouts 14181 | -5/Upper Caves | Learned Factory security intel 14328 | -5/Upper Caves | X0-1V1 activates XOMVISION 14405 | -5/Upper Caves | Entered another Upper Caves area 14406 | -5/Upper Caves | Identified exit to Warlord 14604 | -5/Upper Caves | Attracted the attention of an 0b10 checkpoint 14980 | -5/Upper Caves | Learned 4 Factory zone layouts 15022 | -5/Upper Caves | Tech Extrapolator generated special schematic: Mak. Core Shielding 15079 | -5/Upper Caves | X0-1V1 activates XOMVISION 15279 | -5/Upper Caves | Entered Warlord 15337 | -5/Warlord | Attacked by Warlord forces 15416 | -5/Warlord | Discovered new exit (range 15) 15499 | -5/Warlord | Warlord's base attacked by MAIN.C 15629 | -5/Warlord | X0-1V1 activates XOMVISION 15776 | -5/Warlord | System corruption reached 10% 15849 | -5/Warlord | Warlord forces counterattacked 16027 | -5/Warlord | Identified exit to Proximity Caves 16174 | -5/Warlord | Warlord base infiltrated, sounded retreat 16287 | -5/Warlord | X0-1V1 activates XOMVISION 16292 | -5/Warlord | Spotted Executioner 16298 | -5/Warlord | Entered Proximity Caves 16322 | -4/Proximity Caves | Learned Research emergency access door positions 16445 | -4/Proximity Caves | Learned Research garrison access intel 16692 | -4/Proximity Caves | Attracted the attention of an 0b10 base 16729 | -4/Proximity Caves | Reached level 25 16767 | -4/Proximity Caves | X0-1V1 vaporized surrounding terrain (radius 21) 16773 | -4/Proximity Caves | Destroyed 7 combat bots 16778 | -4/Proximity Caves | Learned Research trap positions 16778 | -4/Proximity Caves | Learned Armory stockpile data 16778 | -4/Proximity Caves | Learned Research security intel 16778 | -4/Proximity Caves | Learned Factory garrison access intel 16844 | -4/Proximity Caves | X0-1V1 activates XOMVISION 16922 | -4/Proximity Caves | Ambushed by research squad 16945 | -4/Proximity Caves | Crushed by falling debris 17003 | -4/Proximity Caves | Core integrity restored by X0-1V1 (+216) 17023 | -4/Proximity Caves | X0-1V1 sent hostile Guerrilla (x2) 17395 | -4/Proximity Caves | X0-1V1 vaporized surrounding terrain (radius 21) 17428 | -4/Proximity Caves | Entered Factory 17430 | -4/Factory | Loaded intel: 109 trap records 17432 | -4/Factory | Loaded intel: 28 terminal locations 17433 | -4/Factory | Loaded intel: 4 garrison access locations 17531 | -4/Factory | Identified exit to Upper Caves 17531 | -4/Factory | X0-1V1 revealed exit location to -4/Upper Caves 17599 | -4/Factory | X0-1V1 sent you to a vault 17607 | -4/Factory | Found Prototype Hackware 17607 | -4/Factory | Identified System Mapper 17658 | -4/Factory | Found Prototype Device 17658 | -4/Factory | Identified Thermal Barrier 17672 | -4/Factory | Found Prototype Processor 17672 | -4/Factory | Identified Exp. Target Analyzer 17871 | -4/Factory | Discovered new exit (range 13) 17893 | -4/Factory | Identified exit to Research 17974 | -4/Factory | Identified exit to Extension 18053 | -4/Factory | Reached level 26 18143 | -4/Factory | X0-1V1 announced a LAN party 18165 | -4/Factory | X0-1V1 activates XOMVISION 18308 | -4/Factory | Destroyed 8 combat bots 18428 | -4/Factory | First assault squad dispatched 18531 | -4/Factory | X0-1V1 activates XOMVISION 19182 | -4/Factory | Sensors blinded by X0-1V1 19315 | -4/Factory | Spotted B-86 Titan 19333 | -4/Factory | X0-1V1 upgraded hostiles (x1) 19334 | -4/Factory | Weapon slot count temporarily expanded by X0-1V1 (+3) 19336 | -4/Factory | Spotted B-90 Cyclops 19347 | -4/Factory | Core integrity fell below 50% 19357 | -4/Factory | Destroyed B-90 Cyclops 19398 | -4/Factory | System corruption reached 10% 19458 | -4/Factory | Incoming investigation squad redirected 19493 | -4/Factory | Fabricated Adv. System Restoration Module (x2) 19510 | -4/Factory | Core integrity fell below 20% 19542 | -4/Factory | X0-1V1 upgraded hostiles (x3) 19635 | -4/Factory | Cargo convoy interrupted 19646 | -4/Factory | Build established: Hacker-Executioner 19684 | -4/Factory | X0-1V1 mutated your Propulsion slot to Utility slot 19747 | -4/Factory | Sucked down chute 19747 | -4/Factory | Entered Waste 19749 | -4/Waste | Reached level 27 19756 | -4/Waste | Spotted C-40 Crusher 19761 | -4/Waste | Spotted C-40 Crusher 19778 | -4/Waste | Spotted C-40 Crusher 19781 | -4/Waste | Destroyed C-40 Crusher 19795 | -4/Waste | Spotted C-40 Crusher 19802 | -4/Waste | Destroyed C-40 Crusher 19818 | -4/Waste | Crushed by Compactor (1 part destroyed, 1 dropped) 19820 | -4/Waste | Destroyed C-40 Crusher 19820 | -4/Waste | Destroyed C-40 Crusher 19823 | -4/Waste | Spotted C-40 Crusher 19866 | -4/Waste | Spotted C-40 Crusher 19892 | -4/Waste | Crushed by Compactor (1 part destroyed, 1 dropped) 19895 | -4/Waste | Crushed by Compactor (1 part destroyed, 1 dropped) 19898 | -4/Waste | Crushed by Compactor (1 part destroyed, 1 dropped) 19900 | -4/Waste | Self-destructed Last Messages --------------- 19879_ Slug penetrates C-40 Crusher. 19879_ C-40 Crusher suffers critical hit (Destroy). 19879_ Slug penetrates C-40 Crusher. 19879_ C-40 Crusher suffers critical hit (Destroy). 19879_ Damper Plating crushed. 19879_ Imp. Cooling System crushed. 19879_ Imp. Propulsion Shielding crushed. 19882_ O35&8OXS97:CIHAJT5 MQHJBX Y# 19882_ Slug penetrates C-40 Crusher. 19885_ Slug penetrates Wall. 19885_ Slug penetrates Earth. 19888_ Slug penetrates C-40 Crusher. 19892_ Railgun crushed. 19892_ Imp. Kinecellerator crushed. 19895_ Slug penetrates C-40 Crusher. 19895_ KE Penetrator crushed. 19895_ Adv. Sensor Array crushed. 19898_ Slug penetrates C-40 Crusher. 19898_ KE Penetrator crushed. 19898_ Centrium Wheel crushed. Map ----- +----------------------------------------------------+ | ??????????????????????????????????????? | | ??????????????????????????????????????? | | ??????????????????????????????????????? | | ??????????????????????????????????????? | | ??????????????????????????????????????? | | ??????????????????????????????????????? | | ??????????????????????????????????????? | | ??????????????????????????????????????? | | ??????????????????????????????????????? | | ??????????????????????????????????????? | | ??????????????????????????????????????? | | ??????????????????????????????????????? | | ??????????????????????????????????#???? | | ????????????????????????????????? #???? | | ????????????????????????????????? #???? | | ???????????????????????????????? ##??? | | ??????????????????????????????? "#??? | | ??????????????????????????????? #???? | | ?????????????????????????????? ????? | | ????????????????????????????? ##????? | | ?????????????############???? "#????? | | ?????????????# #### "#????? | | ?????????????# ; # ##????? | | ?????????????# ;##; "###### | | ?????????????# | | ?????????????#@CCCC %%! | | ?????????????#=CCCC | | ?????????????# | | ?????????????# ;;;; "##""## | | ?????????????# #### ##????? | | ?????????????# #??? #?????? | | ?????????????############???? #?????? | | ????????????????????????????? #?????? | | ????????????????????????????? ????? | | ?????????????????????????????? ???? | | ?????????????????????????????? ??? | | ??????????????????????????????? ?? | | ??????????????????????????????? ######? | | ??????????????????????????????? #?????? | | ????????????????????????????????#?????? | | ??????????????????????????????????????? | | ??????????????????????????????????????? | | ??????????????????????????????????????? | | ??????????????????????????????????????? | | ??????????????????????????????????????? | | ??????????????????????????????????????? | | ??????????????????????????????????????? | | ??????????????????????????????????????? | | ??????????????????????????????????????? | | ??????????????????????????????????????? | +----------------------------------------------------+ Best States ------------- Heat Dissipation 85 Energy Generation 43 Energy Capacity 1490 Matter Stores 975 Matter Capacity 1000 Sight Range 24 Robot Scan Range 16 Terrain Scan Density 10 Jamming Range 16 Corruption Block 15 Resistance: KI 10 Resistance: TH 50 Evasion (%) 44 Targeting Accuracy 28 Target Analysis 10 Recoil Reduction 3 Kinecelleration 40 Offensive Hacking 30 Defensive Hacking 22 Authchip Count 2 Item Schematics ----------------- Imp. Cryofiber Web | -8/Recycling | Hacked Trap Scanner | -8/Recycling | Hacked Imp. Signal Interpreter | -8/Recycling | Hacked Hvy. Plasma Cannon | -8/Recycling | Hacked 0b10 Decoder Chip [Skirmisher] | -6/Factory | Extrapolated Spk. Treads | -6/Factory | Extrapolated Deep Structural Scanner | -6/Factory | Extrapolated 0b10 Decoder Chip [Generic] | -6/Factory | Extrapolated 0b10 Decoder Chip [Scout] | -6/Factory | Extrapolated Machine Rigger | -6/Factory | Extrapolated Mak. Power Source | -6/Factory | Extrapolated Mak. Terrain Scanner | -6/Factory | Extrapolated Spk. Medium Treads | -6/Factory | Extrapolated Mak. System Shield | -6/Factory | Extrapolated Mak. Hacking Suite | -6/Factory | Extrapolated Beamcaster | -6/Factory | Extrapolated Multitool | -6/Factory | Extrapolated Mak. Targeting Computer | -6/Factory | Extrapolated Adv. Thermal Shield | -6/Factory | Hacked System Restoration Module | -6/Factory | Hacked Tactical Coordination Suite | -6/Factory | Extrapolated Energy Deflector | -6/Factory | Extrapolated Mak. Thermal Plating | -6/Factory | Extrapolated Mak. Coolant Network | -6/Lower Caves | Extrapolated Mak. Medium Armor Plating | -6/Lower Caves | Extrapolated Mak. Ablative Armor | -6/Lower Caves | Extrapolated Hvy. Beamcaster | -6/Lower Caves | Extrapolated Hvy. Battle Rifle | -6/Lower Caves | Extrapolated Plasma Flamer | -6/Lower Caves | Extrapolated Combat Drone Bay | -6/Data Miner | Free Lgt. Regenerative Plating | -6/Data Miner | Free Enh. Flexi-carbon Leg | -6/Data Miner | Free Imp. Matter Compressor | -6/Data Miner | Free Tiamat Missile Launcher | -6/Data Miner | Free Impulse Thruster | -6/Data Miner | Free Imp. Phase Shifter | -6/Data Miner | Free Hardcell Cannon | -6/Data Miner | Free Point Defense System | -6/Data Miner | Free Q-thruster | -6/Data Miner | Free Mak. Trap Scanner | -5/Proximity Caves | Extrapolated Mapping Drone Bay | -5/Factory | Extrapolated Railgun | -5/Factory | Hacked Imp. System Restoration Module | -5/Factory | Hacked Mak. ECM Suite | -5/Factory | Extrapolated Mak. System Restoration Module | -5/Factory | Extrapolated Mak. Light Armor Plating | -5/Factory | Extrapolated Adv. System Restoration Module | -5/Factory | Scanalyzed Slug Cannon | -5/Factory | Extrapolated Spk. Heavy Treads | -5/Factory | Extrapolated Mak. Heavy Armor Plating | -5/Factory | Extrapolated Mak. Flight Unit | -5/Upper Caves | Extrapolated Mak. Core Shielding | -5/Upper Caves | Extrapolated Mak. Axe | -5/Upper Caves | Extrapolated Bore Cannon | -4/Proximity Caves | Extrapolated Mak. Shrapnel Gun | -4/Proximity Caves | Extrapolated Mak. Transmission Jammer | -4/Factory | Extrapolated Imp. Arc Thrower | -4/Factory | Extrapolated Helical Railgun | -4/Factory | Scanalyzed Mak. Hover Unit | -4/Factory | Extrapolated Mak. Weapon Shielding | -4/Factory | Extrapolated Mak. Propulsion Shielding | -4/Waste | Extrapolated Robot Schematics ------------------ Y-54 Guardian | -6/Data Miner | Free B-60 Warrior | -6/Data Miner | Free B-48 Gladiator | -6/Data Miner | Free H-77 Assassin | -6/Data Miner | Free Fabricated ------------ System Restoration Module | x2 | -6/Factory | Authchip System Restoration Module | x2 | -6/Factory | Authchip Adv. System Restoration Module | x2 | -4/Factory Repaired ---------- Nothing Studied --------- Wheel | -5/Factory | Hacked Alien Tech Used ----------------- Core Expander Achievements -------------- Executioner Spacetime Is Relative Challenges ------------ None RPGLIKE | -11 -10 -10 -10 -9 -8 -8 -8 -8 -6 -6 -6 -6 -5 -5 -5 -5 -5 -4 -4 -4 --------- Run | Yrd Mat Min Exi Min Mat Sto Rec Scr Fac Low Low Dat Pro Fac Upp Upp War Pro Fac Was Levels Raised 26 | . 2 2 . 1 4 2 1 . 5 1 . . 2 2 1 . . 1 1 1 XP Earned 42025 | 3000 4200 2010 243 1955 6066 3150 1105 170 7477 805 805 220 2280 3923 398 224 128 1403 2406 57 XP Spent 35350 | 3000 2700 2500 . 1400 1750 1850 900 1300 11600 . . . . 3850 3200 . . . 1300 . Upgrades 60 | 10 3 2 . 1 7 2 2 7 9 . . . . 6 1 . . . 10 . Propulsion Slot 3 | 1 . . . . 1 1 . . . . . . . . . . . . . . Utility Slot 10 | 1 2 1 . . . . . . 4 . . . . 1 1 . . . . . Weapon Slot 5 | 1 1 1 . 1 . . . . 1 . . . . . . . . . . . Core Integrity 16 | . . . . . . . . 6 . . . . . . . . . . 10 . Heat Dissipation 10 | . . . . . 5 . . . . . . . . 5 . . . . . . Inventory Capacity 4 | 1 . . . . 1 1 . 1 . . . . . . . . . . . . Sight Range 2 | 1 . . . . . . . . 1 . . . . . . . . . . . Ranged Accuracy 2 | 1 . . . . . . . . 1 . . . . . . . . . . . Hack Attack % 2 | 1 . . . . . . 1 . . . . . . . . . . . . . Hack Defense % 2 | 1 . . . . . . 1 . . . . . . . . . . . . . KI Resistance % 2 | . . . . . . . . . 2 . . . . . . . . . . . TH Resistance % 1 | 1 . . . . . . . . . . . . . . . . . . . . KI Damage % 1 | 1 . . . . . . . . . . . . . . . . . . . . Protomatter Created 6346 | . 239 187 . 40 617 470 274 53 654 40 377 . 225 962 205 162 . 420 1249 172 Integrity Restored 12210 | . 290 311 . 135 1051 315 373 . 1881 141 716 . 480 2561 648 481 . 803 1766 258 Core 9431 | . 220 217 . 135 772 248 288 . 1881 141 271 . 433 2176 372 107 . 654 1258 258 Parts 2779 | . 70 94 . . 279 67 85 . . . 445 . 47 385 276 374 . 149 508 . Protomatter Decayed 3808 | . 76 79 . 13 414 361 143 . 14 29 82 . 8 233 . 17 1499 106 734 . Game ------ Seed ArmageddonCompanionChaingun Manual? 0 Play Time 03:57:04 Cumulative 360.7 hours Start 2026.06.24 @ 17:37:34 End 2026.06.27 @ 06:50:42 Sessions 8 Manual Loads 0 Difficulty Rogue Special Mode Winter2019/RPGLIKE Game No. 147 Rogue 99 Adventurer 44 Explorer 4 Win Type - Total 11 Types 4/3/0/1/1/1/0/1/0/0 Lore% 77 Gallery% 69 Achievement% 56 Wizard Run 0 Options --------- Layout 0 ASCII 0 Keyboard 0 Movement Arrows Keybinds 0 Fullscreen 2 Font 18/SmallcapsGlow Map View 76x50 Zoom Use 0% Tactical HUD 1 Map Filters NONE Filters NONE Steam 1 RUN: ac879f3f-a8e9-4b0e-a964-9d0c85f87b23